lending/lending_fUSD_20240112
["ID","MTS","AMOUNT","RATE_DAILY","PERIOD"]
[311421413,1705085445769,-170.76,0.00028452,2]
[311421415,1705085445782,-154.16666666,0.000294,2]
[311421417,1705085445795,-2535.02727011,0.000318,3]
[311421420,1705085445807,-4767.40000002,0.000318,3]
[311421422,1705085445818,-11093.98522545,0.000318,3]
[311421424,1705085445828,-150.48864395,0.00031812,2]
[311421426,1705085445837,-500.0,0.00031936,2]
[311421428,1705085445846,-153.84,0.00031963,2]
[311421430,1705085445855,-18086.00326941,0.00032,2]
[311421488,1705085446368,-401.47892665,0.00032,2]
[311421497,1705085446437,-4315.05750502,0.00032,2]
[311421499,1705085446449,-512.89501224,0.00032,2]
[311421506,1705085446508,-434.18,0.00032,2]
[311421547,1705085446883,-150.01,0.00022999,2]
[311421549,1705085446893,-3292.32224499,0.00022999,2]
[311421551,1705085446903,-499.99,0.00031936,2]
[311421578,1705085447144,-1057.67775501,0.00032,2]
[311421581,1705085447156,-2175.0478,0.00032,2]
[311421583,1705085447167,-17411.69080001,0.00032,2]
[311421589,1705085447213,-2171.05,0.00032,2]
[311421590,1705085447224,-1099.74633804,0.00032,2]
[311421591,1705085447235,-442.82396974,0.00032,2]
[311421960,1705085504978,872.60606553,0.00021848,2]
[311421961,1705085505497,2074.93277737,0.00022307,2]
[311421962,1705085505745,1000.0,0.00022308,2]
[311421963,1705085508431,2248.00674586,0.00022078,2]
[311421964,1705085512583,350.97314023,0.00015,10]
[311421966,1705085624841,6653.0,0.0002,2]
[311421969,1705085660681,765.0,0.00022,2]
[311421974,1705085803434,161.73317498,0.000224,2]
[311421975,1705085841403,256.59,0.00021681,2]
[311421976,1705086064262,205.0,0.00021839,2]
[311421981,1705086186608,756.85744404,0.000224,2]
[311421983,1705086301712,243.76,0.00020996,2]
[311421984,1705086441105,-695.52029936,0.00022475,2]
[311421985,1705086441126,-1510.66862967,0.00022476,4]
[311421986,1705086631978,-5252.58160905,0.00022475,2]
[311421987,1705086631988,-544.69959441,0.000225,2]
[311421988,1705086631998,-3434.07410653,0.000225,2]
[311421989,1705086632007,-994.49888813,0.00022607,2]
[311421990,1705086632032,-15541.75111187,0.00022607,2]
[311421991,1705086632041,-220.91487057,0.00022767,4]
[311421992,1705086632050,-200.0,0.00022796,2]
[311421993,1705086632060,-29282.16100062,0.00022798,2]
[311421994,1705086632072,-703.51914482,0.00022798,2]
[311421995,1705086632139,-13083.9,0.00022798,2]
[311421999,1705086637976,-53889.34515456,0.00022798,2]
[311422000,1705086637986,-205.0,0.00022848,2]
[311422001,1705086637995,-558.15325618,0.00022882,2]
[311422002,1705086638004,-58000.0,0.00022891,2]
[311422003,1705086638013,-250.0,0.000229,2]
[311422004,1705086638023,-161.73317498,0.000229,2]
[311422005,1705086638031,-169.42909074,0.000229,2]
[311422006,1705086638041,-58000.0,0.000229,2]
[311422007,1705086638050,-165.75452077,0.000229,2]
[311422008,1705086638059,-499.99,0.000229,2]
[311422009,1705086638068,-211.2319722,0.000229,2]
[311422010,1705086638077,-55555.0,0.000229,2]
[311422011,1705086638087,-72058.78226659,0.000229,2]
[311422012,1705086638097,-960.0,0.00022923,2]
[311422013,1705086638106,-154.72348001,0.00022989,2]
[311422014,1705086638115,-11790.17837994,0.00022997,2]
[311422015,1705086638126,-7117.67830184,0.00022997,2]
[311422016,1705086638135,-163.7690261,0.00022997,2]
[311422017,1705086638145,-492.19152417,0.00022997,2]
[311422018,1705086638155,-915.15510461,0.00022997,2]
[311422019,1705086638164,-538.94619205,0.00022997,2]
[311422020,1705086638173,-1647.99754643,0.00022997,2]
[311422021,1705086638182,-378.12162453,0.00022997,2]
[311422022,1705086638192,-3226.96339257,0.00022997,4]
[311422023,1705086638201,-360.33822996,0.00022998,2]
[311422024,1705086638210,-189.33524071,0.00022998,2]
[311422025,1705086638219,-415.92795139,0.00022998,2]
[311422026,1705086638228,-3000.9251964,0.00022998,2]
[311422027,1705086638239,-155.60724431,0.00022998,2]
[311422028,1705086638248,-42171.53667484,0.00022998,2]
[311422029,1705086638258,-318.31330327,0.00022999,2]
[311422030,1705086638267,-504924.79064027,0.00022999,2]
[311422031,1705086638276,-150.0,0.00022999,2]
[311422032,1705086638286,-150.0,0.00022999,2]
[311422033,1705086638295,-150.0,0.00022999,2]
[311422034,1705086638305,-150.0,0.00022999,2]
[311422035,1705086638314,-150.0,0.00022999,2]
[311422036,1705086638323,-150.0,0.00022999,2]
[311422037,1705086638332,-150.0,0.00022999,2]
[311422038,1705086638341,-150.0,0.00022999,2]
[311422039,1705086638351,-150.0,0.00022999,2]
[311422040,1705086638361,-150.0,0.00022999,2]
[311422041,1705086638370,-150.0,0.00022999,2]
[311422042,1705086638380,-150.0,0.00022999,2]
[311422043,1705086638389,-150.0,0.00022999,2]
[311422044,1705086638398,-150.0,0.00022999,2]
[311422045,1705086638408,-150.0,0.00022999,2]
[311422046,1705086638417,-150.0,0.00022999,2]
[311422047,1705086638426,-150.0,0.00022999,2]
[311422048,1705086638435,-150.0,0.00022999,2]
[311422049,1705086638445,-150.0,0.00022999,2]
[311422050,1705086638454,-150.0,0.00022999,2]
[311422051,1705086638464,-150.0,0.00022999,2]
[311422052,1705086638473,-150.0,0.00022999,2]
[311422053,1705086638483,-150.0,0.00022999,2]
[311422054,1705086638492,-150.0,0.00022999,2]
[311422055,1705086638502,-150.0,0.00022999,2]
[311422056,1705086638511,-150.0,0.00022999,2]
[311422057,1705086638520,-150.0,0.00022999,2]
[311422059,1705086638529,-150.0,0.00022999,2]
[311422060,1705086638538,-150.0,0.00022999,2]
[311422062,1705086638547,-150.0,0.00022999,2]
[311422064,1705086638556,-150.0,0.00022999,2]
[311422066,1705086638566,-150.0,0.00022999,2]
[311422068,1705086638574,-150.0,0.00022999,2]
[311422070,1705086638583,-150.0,0.00022999,2]
[311422071,1705086638592,-150.0,0.00022999,2]
[311422073,1705086638601,-150.0,0.00022999,2]
[311422075,1705086638610,-150.0,0.00022999,2]
[311422077,1705086638619,-150.0,0.00022999,2]
[311422079,1705086638628,-150.0,0.00022999,2]
[311422081,1705086638637,-150.0,0.00022999,2]
[311422083,1705086638648,-150.0,0.00022999,2]
[311422085,1705086638657,-150.0,0.00022999,2]
[311422086,1705086638666,-893099.77817133,0.00023,2]
[311422088,1705086638675,-4631190.67158961,0.00023,2]
[311422092,1705086638703,-4859.93343397,0.00023,2]
[311422095,1705086638722,-694.270008,0.00023,2]
[311422097,1705086638735,-259.76588356,0.00023,2]
[311422111,1705086638875,-435.272,0.00023,2]
[311422114,1705086638895,-25677.59057887,0.00023,2]
[311422235,1705086640513,-871.6,0.00023,2]
[311422236,1705086641263,-1764.18143649,0.00023,2]
[311422237,1705086641275,-1894.04363084,0.00023,2]
[311422238,1705086641289,-4338.7,0.00023,2]
[311422239,1705086641320,-4923.70420002,0.00023,2]
[311422316,1705086642989,-1895.729958,0.00023,2]
[311422317,1705086643001,-269.14414794,0.00023,2]
[311422318,1705086643012,-870.95,0.00023,2]
[311422319,1705086643104,-4982.62163848,0.00023,2]
[311422331,1705086643408,-3135.57390475,0.00023,2]
[311422332,1705086643420,-424.9199994,0.00023,2]
[311422333,1705086643444,-17996.27037341,0.00023,2]
[311422334,1705086643457,-1734.03922036,0.00023,2]
[311422362,1705086646059,-3989.05684023,0.00023,2]
[311422363,1705086646071,-779.38598227,0.00023,2]
[311422364,1705086646083,-1335.57189952,0.00023,2]
[311422365,1705086646095,-335.30570427,0.00023,2]
[311422366,1705086646106,-46184.07725212,0.00023,2]
[311422367,1705086646127,-126460.14386464,0.00023,2]
[311422368,1705086646138,-20055.07270493,0.00023,2]
[311422369,1705086646149,-473.05077416,0.00023,2]
[311422370,1705086646165,-267.12499998,0.00023,2]
[311422371,1705086646177,-434.43714,0.00023,2]
[311422372,1705086646189,-3011.84866342,0.00023,2]
[311422373,1705086646210,-495.06200404,0.00023,2]
[311422374,1705086646222,-1095.76779495,0.00023,2]
[311422375,1705086646234,-373.99662793,0.00023,2]
[311422376,1705086646251,-507.66341396,0.00023,2]
[311422377,1705086646267,-866.29924,0.00023,2]
[311422378,1705086646279,-551.28542087,0.00023,2]
[311422379,1705086646357,-5981.164186,0.00023,2]
[311422380,1705086646370,-768.0,0.00023,2]
[311422381,1705086646383,-347.44581063,0.00023,2]
[311422402,1705086664859,300.0,0.00022375,2]
[311422403,1705086685810,155.0,0.00022476,30]
[311422404,1705086711771,169.68,0.00020596,2]
[311422405,1705086721781,155.0,0.00022375,30]
[311422406,1705086743840,155.0,0.00022375,30]
[311422407,1705086745903,730.09857102,0.00021,2]
[311422408,1705086765790,155.0,0.00022375,30]
[311422409,1705086765889,170.6542083,0.00021,2]
[311422410,1705086781804,155.0,0.00022375,30]
[311422411,1705086784374,205.0,0.00021848,2]
[311422412,1705086800039,155.0,0.00022375,30]
[311422413,1705086817796,155.0,0.00021848,30]
[311422414,1705086842228,155.0,0.00021848,30]
[311422415,1705086859805,155.0,0.00021848,30]
[311422416,1705086934554,150.0,0.00022,2]
[311422417,1705086977472,2000.0,0.00022261,2]
[311422418,1705086980161,300.0,0.00022,2]
[311422419,1705086996490,211.35275457,0.00021918,2]
[311422420,1705087031222,158.7,0.00022152,2]
[311422421,1705087035460,159.58006256,0.00022151,2]
[311422422,1705087087243,10000.0,0.00022134,2]
[311422423,1705087143773,317.73,0.0002209,2]
[311422424,1705087154627,272.34,0.00022022,2]
[311422425,1705087169621,296.89,0.00020104,2]
[311422426,1705087170056,296.89,0.00022368,2]
[311422427,1705087214079,418.6,0.0002195,2]
[311422428,1705087237136,164.28,0.00021932,2]
[311422429,1705087251994,169.68,0.00017546,2]
[311422430,1705087336935,275.49,0.00021932,2]
[311422431,1705087362135,160.56,0.0002211,2]
[311422432,1705087362524,160.56,0.00022199,2]
[311422433,1705087362747,160.56,0.00022287,2]
[311422434,1705087363198,160.56,0.00022376,2]
[311422435,1705087372032,729.30403692,0.00021,2]
[311422436,1705087448022,721.84,0.00021,2]
[311422437,1705087486108,1531.88,0.00021905,2]
[311422438,1705087504282,205.0,0.00021856,2]
[311422439,1705087548489,171.21009078,0.00022,2]
[311422440,1705087619958,296.54,0.00021903,2]
[311422441,1705087644103,-159.58006256,0.00022456,2]
[311422442,1705087644123,-222.75436481,0.00022457,4]
[311422443,1705087644144,-160.56,0.00022465,2]
[311422444,1705087644164,-155.0,0.00022476,2]
[311422445,1705087644184,-150.0,0.00022527,2]
[311422446,1705087644204,-150.00000001,0.00022539,2]
[311422447,1705087644224,-3803.7574606,0.00022552,2]
[311422448,1705087650170,267.2,0.00020014,2]
[311422449,1705087650702,267.2,0.00022277,2]
[311422450,1705087680505,158.77,0.00022126,2]
[311422451,1705087789945,1000.0,0.00021923,2]
[311422453,1705087792658,275.49,0.00021928,2]
[311422456,1705087806851,168.39615158,0.00021906,2]
[311422462,1705087832409,-1448.82414845,0.00022552,2]
[311422463,1705087832419,-160.56,0.00022553,2]
[311422464,1705087832428,-160.56,0.00022642,2]
[311422465,1705087832440,-168.00896886,0.0002267,2]
[311422466,1705087832449,-168.00896883,0.00022728,2]
[311422467,1705087832459,-160.56,0.00022731,2]
[311422468,1705087832469,-359.88863869,0.00022767,4]
[311422469,1705087832478,-2041.88927517,0.0002277,2]
[311422470,1705087832489,-326.4371442,0.0002277,2]
[311422471,1705087835006,-2321.62134245,0.0002277,2]
[311422472,1705087835016,-168.00896883,0.00022785,2]
[311422473,1705087835026,-414.879,0.00022791,2]
[311422474,1705087835037,-499.99,0.00022791,2]
[311422475,1705087835047,-1272.3843,0.000228,2]
[311422476,1705087835056,-400.35879012,0.000228,2]
[311422477,1705087835066,-160.56,0.00022819,2]
[311422478,1705087835076,-168.00896883,0.00022843,2]
[311422479,1705087835086,-400.35879011,0.0002285,2]
[311422480,1705087835096,-296.54,0.00022882,2]
[311422481,1705087835105,-558.43427985,0.00022882,2]
[311422482,1705087835114,-158.7,0.0002289,2]
[311422483,1705087835124,-5000.0,0.00022899,2]
[311422484,1705087835134,-8623.0601,0.00022899,2]
[311422485,1705087835143,-359.04977581,0.00022899,2]
[311422486,1705087835153,-201.17382027,0.00022899,2]
[311422487,1705087835162,-400.35879011,0.00022899,2]
[311422488,1705087835172,-201.17382021,0.00022899,2]
[311422489,1705087835183,-201.17382021,0.00022899,2]
[311422490,1705087835192,-250.0,0.000229,2]
[311422491,1705087835201,-8526.75795079,0.000229,2]
[311422492,1705087835217,-2341.27133393,0.000229,2]
[311422493,1705087835228,-501.48085518,0.000229,2]
[311422494,1705087835240,-6093.66948765,0.000229,2]
[311422495,1705087835250,-172.40424396,0.000229,2]
[311422496,1705087835259,-168.00896883,0.000229,2]
[311422497,1705087835268,-920.3324087,0.000229,2]
[311422498,1705087835278,-200.84826555,0.000229,2]
[311422499,1705087835288,-397.87437261,0.000229,2]
[311422500,1705087835298,-3450.49366851,0.000229,2]
[311422501,1705087835307,-192.95777321,0.000229,2]
[311422502,1705087835317,-160.56,0.00022908,2]
[311422503,1705087835327,-16530.0,0.00022986,2]
[311422505,1705087835336,-154.72348001,0.00022989,2]
[311422506,1705087835346,-160.56,0.00022996,2]
[311422507,1705087835356,-155.0,0.00022997,2]
[311422508,1705087835365,-199.08409644,0.00022997,2]
[311422509,1705087835375,-1161.23895095,0.00022997,2]
[311422510,1705087835385,-198.84584243,0.00022997,2]
[311422511,1705087835396,-155.0,0.00022997,2]
[311422514,1705087835406,-1166.69999998,0.00022997,2]
[311422516,1705087835415,-273.55023891,0.00022997,2]
[311422517,1705087835425,-155.22276629,0.00022997,2]
[311422519,1705087835436,-187.30145491,0.00022997,2]
[311422521,1705087835446,-160.31925785,0.00022997,2]
[311422522,1705087835456,-220.55180604,0.00022997,2]
[311422524,1705087835466,-155.0,0.00022997,2]
[311422526,1705087835475,-155.0,0.00022997,2]
[311422527,1705087835485,-846.6143286,0.00022997,2]
[311422529,1705087835495,-176.70805274,0.00022997,2]
[311422531,1705087835505,-155.0,0.00022997,2]
[311422532,1705087835514,-155.25678155,0.00022997,2]
[311422534,1705087835524,-155.23250803,0.00022997,2]
[311422536,1705087835534,-239.70963111,0.00022997,2]
[311422538,1705087835544,-1922.71712645,0.00022997,2]
[311422540,1705087835554,-155.0,0.00022997,2]
[311422541,1705087835563,-435.80487067,0.00022997,2]
[311422543,1705087835573,-155.0,0.00022997,2]
[311422544,1705087835582,-19186.59318827,0.00022997,2]
[311422545,1705087835592,-4456.63206432,0.00022997,2]
[311422546,1705087835601,-179.0298242,0.00022997,2]
[311422547,1705087835611,-163.7690261,0.00022998,2]
[311422548,1705087835620,-1885.72085918,0.00022998,2]
[311422550,1705087835630,-425.48694153,0.00022998,2]
[311422552,1705087835639,-1003.704572,0.00022998,2]
[311422554,1705087835649,-400.0,0.00022999,2]
[311422556,1705087835659,-382.21367003,0.00022999,2]
[311422558,1705087835669,-639.23696865,0.00022999,2]
[311422559,1705087835679,-914.75035507,0.00022999,2]
[311422560,1705087835691,-170.50129662,0.00022999,2]
[311422561,1705087835701,-504924.79064027,0.00022999,2]
[311422562,1705087835710,-16886.34290709,0.00022999,2]
[311422563,1705087835721,-1000.0,0.00022999,2]
[311422564,1705087835730,-150.0,0.00022999,2]
[311422565,1705087835740,-150.0,0.00022999,2]
[311422566,1705087835750,-150.0,0.00022999,2]
[311422567,1705087835759,-150.0,0.00022999,2]
[311422568,1705087835769,-150.0,0.00022999,2]
[311422569,1705087835778,-150.0,0.00022999,2]
[311422570,1705087835789,-150.0,0.00022999,2]
[311422571,1705087835799,-150.0,0.00022999,2]
[311422572,1705087835809,-150.0,0.00022999,2]
[311422573,1705087835822,-150.0,0.00022999,2]
[311422574,1705087835832,-150.0,0.00022999,2]
[311422575,1705087835841,-150.0,0.00022999,2]
[311422576,1705087835853,-150.0,0.00022999,2]
[311422577,1705087835862,-150.0,0.00022999,2]
[311422578,1705087835873,-150.0,0.00022999,2]
[311422579,1705087835882,-150.0,0.00022999,2]
[311422580,1705087835892,-20541.56859529,0.00023,2]
[311422581,1705087836013,-3658.26156836,0.00023,2]
[311422582,1705087836025,-10076.2024,0.00023,2]
[311422583,1705087836037,-5462.46429548,0.00023,2]
[311422584,1705087836057,-37603.36734871,0.00023,2]
[311422585,1705087836142,-373.51188536,0.00023,2]
[311422586,1705087836154,-271.75371595,0.00023,2]
[311422591,1705087838233,-16104.48841526,0.000229,2]
[311422592,1705087838245,-1550.61248604,0.000229,2]
[311422593,1705087838362,-294.36661831,0.000229,2]
[311422594,1705087838410,-292.15,0.000229,2]
[311422595,1705087838495,-1072.41174151,0.000229,2]
[311422596,1705087838530,-10694.72075071,0.000229,2]
[311422597,1705087838598,-25546.24998817,0.000229,2]
[311422598,1705087838607,-893821.39765636,0.00023,2]
[311422599,1705087838617,-5116465.90605995,0.00023,2]
[311422618,1705087840747,-3647.6167871,0.00023,2]
[311422619,1705087840806,-1076.13986426,0.00023,2]
[311422620,1705087841619,-4639.03899999,0.00023,2]
[311422621,1705087841631,-391.0305,0.00023,2]
[311422655,1705087843242,-390.60683015,0.000229,2]
[311422656,1705087843279,-2109.39316985,0.000229,2]
[311422657,1705087843289,-1297.45133456,0.000229,2]
[311422658,1705087843339,-2169.5805,0.000229,2]
[311422659,1705087843351,-302.23,0.000229,2]
[311422660,1705087843363,-300.1,0.000229,2]
[311422661,1705087843374,-301.132,0.000229,2]
[311422662,1705087843386,-274.264,0.000229,2]
[311422663,1705087843397,-309.865,0.000229,2]
[311422664,1705087843455,-29779.55643614,0.000229,2]
[311422665,1705087843467,-2077.0456734,0.000229,2]
[311422666,1705087843495,-279.603,0.000229,2]
[311422667,1705087843590,-1418.4120559,0.000229,2]
[311422668,1705087843600,-357.35479194,0.00022999,10]
[311422669,1705087843610,-342.61663816,0.00022999,2]
[311422670,1705087843619,-40079.09331399,0.00023,2]
[311422671,1705087843631,-750.0,0.00023,2]
[311422695,1705087846245,-201.17382021,0.00022899,2]
[311422697,1705087846255,-155.15859743,0.00022998,2]
[311422699,1705087846264,-362.17886216,0.00022998,2]
[311422701,1705087846273,-3382.66558248,0.00022998,5]
[311422703,1705087846283,-541.51209612,0.00022999,2]
[311422705,1705087846292,-4006.3276394,0.00022999,2]
[311422707,1705087846301,-173.80086289,0.00022999,2]
[311422709,1705087846311,-424098.32082783,0.00023,2]
[311422719,1705087846417,-2333.43729331,0.00023,2]
[311422724,1705087846455,-2174.1,0.00023,2]
[311422768,1705087846929,14455.68821814,0.00021796,2]
[311422769,1705087847759,284.98811969,0.00022077,2]
[311422770,1705087854069,9069.44221831,0.00021848,7]
[311422771,1705087855828,506.33180245,0.00021,2]
[311422772,1705087857884,201.67811599,0.00021906,2]
[311422774,1705087872055,8808.67368654,0.00021845,7]
[311422775,1705087906825,1184.18,0.0002205,2]
[311422776,1705087933510,1033.12,0.00022001,2]
[311422777,1705087940822,360.33822996,0.00018316,2]
[311422778,1705087943610,2318.28,0.00022144,2]
[311422779,1705087997441,176.09,0.00021997,2]
[311422780,1705088016045,2571.9,0.00021766,2]
[311422781,1705088029520,10000.0,0.00021918,2]
[311422782,1705088037246,166.53,0.00021758,2]
[311422783,1705088038307,337.81,0.00022001,2]
[311422784,1705088038514,337.81,0.00022117,2]
[311422785,1705088038734,337.81,0.00022233,2]
[311422786,1705088038989,337.81,0.00022349,2]
[311422787,1705088073213,172.86,0.000217,10]
[311422788,1705088087974,416.92865242,0.00022371,2]
[311422789,1705088091685,250.0,0.000192,2]
[311422790,1705088092932,416.92865225,0.00022394,2]
[311422791,1705088097939,416.92865225,0.00022416,2]
[311422792,1705088102935,416.92865225,0.00022439,2]
[311422793,1705088128524,169.68,0.00017316,2]
[311422794,1705088132910,500.0,0.00021636,2]
[311422795,1705088141707,154.52,0.00021823,2]
[311422796,1705088142105,154.52,0.00022039,2]
[311422797,1705088142345,154.52,0.00022255,2]
[311422798,1705088158678,1019.92,0.0002158,2]
[311422799,1705088187665,479.91388846,0.00022407,2]
[311422800,1705088189042,479.91388846,0.00022439,2]
[311422801,1705088197063,250.0,0.00021549,2]
[311422802,1705088223843,204.0,0.00021975,2]
[311422803,1705088231187,200.0,0.00021564,2]
[311422804,1705088239734,540.97,0.00019646,2]
[311422805,1705088240087,540.97,0.0002191,2]
[311422806,1705088242525,178.079,0.000224,2]
[311422807,1705088247621,-285.07168855,0.00022453,2]
[311422808,1705088247641,-314.92831145,0.00022454,2]
[311422809,1705088258079,2000.0,0.00021581,2]
[311422810,1705088267288,54336.71843066,0.00021579,2]
[311422811,1705088267310,2070.0,0.00021579,2]
[311422812,1705088267335,338754.28156934,0.00021579,2]
[311422813,1705088275577,23900.0,0.0002157,2]
[311422814,1705088277510,-215.52024225,0.000224,2]
[311422815,1705088287038,150.0,0.0002157,2]
[311422816,1705088287061,150.0,0.0002157,2]
[311422817,1705088287083,150.0,0.0002157,2]
[311422818,1705088287255,145.36,0.0002157,2]
[311422819,1705088297771,150.0,0.00021561,2]
[311422820,1705088297791,50.0,0.00021561,2]
[311422821,1705088298324,-196.67975775,0.00022273,2]
[311422822,1705088299787,-18.8404845,0.00022273,2]
[311422823,1705088299808,-55.89815775,0.000224,2]
[311422824,1705088299827,-75.26135775,0.000224,2]
[311422825,1705088301185,-150.0,0.000224,2]
[311422826,1705088301706,-150.0,0.000224,2]
[311422827,1705088303000,-150.0,0.000224,2]
[311422828,1705088303703,-150.0,0.00022121,2]
[311422829,1705088304552,-150.0,0.00022121,2]
[311422830,1705088304952,-600.0,0.00022121,2]
[311422831,1705088305043,-150.0,0.00022121,2]
[311422832,1705088306055,-150.0,0.00022121,2]
[311422833,1705088306526,-150.0,0.00022121,2]
[311422834,1705088306935,-150.0,0.00022121,2]
[311422835,1705088307476,-150.0,0.00022121,2]
[311422836,1705088308045,-150.0,0.00022121,2]
[311422837,1705088308653,150.0,0.00021807,2]
[311422838,1705088308675,147.27,0.00021807,2]
[311422839,1705088308952,150.0,0.00021867,2]
[311422840,1705088308974,147.27,0.00021867,2]
[311422841,1705088309387,297.27,0.00021927,2]
[311422842,1705088309731,297.27,0.00021987,2]
[311422843,1705088309966,297.27,0.00022047,2]
[311422844,1705088340680,-600.0,0.00022104,2]
[311422845,1705088380236,150.0,0.000221,2]
[311422846,1705088380256,150.0,0.000221,2]
[311422847,1705088380277,150.0,0.000221,2]
[311422848,1705088380301,150.0,0.000221,2]
[311422849,1705088380321,150.0,0.000221,2]
[311422850,1705088380344,185.64,0.000221,2]
[311422851,1705088386334,3855.00674069,0.00022099,2]
[311422852,1705088388553,212.70302285,0.00022099,2]
[311422853,1705088389878,628.16623657,0.00022099,2]
[311422854,1705088393396,-600.0,0.000221,2]
[311422855,1705088397321,486.39012387,0.00022099,2]
[311422856,1705088422186,2136.98369019,0.00022099,2]
[311422857,1705088424832,4630.74851402,0.00022099,2]
[311422858,1705088425213,5252.58160905,0.00022099,2]
[311422859,1705088427667,314.87269397,0.00022017,2]
[311422860,1705088427770,3672.84023195,0.00022099,4]
[311422861,1705088428965,314.87269397,0.00022019,2]
[311422862,1705088430278,314.87269397,0.00022021,2]
[311422863,1705088431464,3300.0,0.00022099,2]
[311422864,1705088432030,4149.2357,0.0002202,2]
[311422865,1705088432556,155.0,0.00022099,2]
[311422866,1705088435604,985.30808237,0.00022021,2]
[311422867,1705088440593,4200.72067427,0.00022099,2]
[311422868,1705088441688,609.25184045,0.00022021,2]
[311422869,1705088443422,558.15325618,0.00022099,2]
[311422870,1705088460795,2055.66,0.00021918,2]
[311422871,1705088460961,557.92988483,0.00022001,2]
[311422872,1705088461319,164.04798312,0.00022021,2]
[311422873,1705088463229,5252.58160905,0.00021891,2]
[311422874,1705088470756,157.99,0.00021277,2]
[311422875,1705088470980,157.99,0.00021441,2]
[311422876,1705088471405,157.99,0.00021604,2]
[311422877,1705088471628,157.99,0.00021768,2]
[311422878,1705088471909,157.99,0.00021932,2]
[311422879,1705088472153,157.99,0.00022095,2]
[311422880,1705088481800,451.35943019,0.000221,2]
[311422881,1705088483210,5252.58160905,0.00021891,2]
[311422882,1705088489767,266.92448542,0.00022019,2]
[311422883,1705088489970,2142.99004246,0.000221,2]
[311422884,1705088496564,155.0,0.000221,2]
[311422885,1705088498540,2136.98369019,0.000221,2]
[311422886,1705088499055,166.01,0.00021242,2]
[311422887,1705088501210,5252.58160905,0.00021891,2]
[311422888,1705088503772,285.07168855,0.000221,2]
[311422889,1705088505373,2500.0,0.00022021,2]
[311422890,1705088510433,363.71957422,0.000221,2]
[311422891,1705088512573,336.7179586,0.000221,2]
[311422892,1705088512599,155.0,0.000221,2]
[311422893,1705088521494,150.0,0.000221,2]
[311422894,1705088521780,285.07168855,0.000221,2]
[311422895,1705088530530,335.17912711,0.000221,2]
[311422896,1705088530642,2581.65859867,0.00022019,2]
[311422897,1705088537058,212.70302285,0.000221,2]
[311422898,1705088537888,5252.58160905,0.00021879,2]
[311422899,1705088542898,628.16623657,0.00022099,2]
[311422900,1705088543805,275.07488457,0.000221,2]
[311422901,1705088544128,155.57460381,0.000221,2]
[311422902,1705088546574,449.5102448,0.000221,2]
[311422903,1705088546928,269.68179986,0.000221,2]
[311422904,1705088547311,161.52008593,0.000221,2]
[311422905,1705088548360,2314.24604604,0.000221,2]
[311422906,1705088548667,8973.3595,0.00022018,2]
[311422907,1705088548825,155.0,0.000221,2]
[311422908,1705088549069,198.90307543,0.000221,2]
[311422909,1705088550659,2134.23742,0.000221,2]
[311422910,1705088550717,155.0,0.000221,2]
[311422911,1705088551629,353.97740702,0.000221,2]